bitfinex/quotes_ETHUSD_20250404
["timestamp","ask_amount","ask_price","bid_price","bid_amount"]
[1743758230332,8.46509,1829.8,1829.4,11.73746]
[1743758230530,8.46509,1829.8,1829.5,5.46597]
[1743758231152,13.93038,1829.8,1829.4,5.46615]
[1743758231472,0.7555,1829.7,1829.4,5.46615]
[1743758232172,0.7555,1829.7,1829.4,10.93227]
[1743758232544,7.689548,1829.7,1829.3,5.46644]
[1743758232750,10.93159,1829.6,1829.2,5.4668]
[1743758232943,6.23531,1829.5,1829.2,5.4668]
[1743758233269,0.7693,1829.5,1829.2,10.93352]
[1743758233480,0.7693,1829.5,1829.2,5.46672]
[1743758233777,0.7693,1829.5,1829.2,10.93345]
[1743758233978,0.7693,1829.5,1829.2,12.627085]
[1743758235001,6.23533,1829.5,1829.1,5.4671]
[1743758235151,5.46638,1829.4,1829.1,5.4671]
[1743758235450,0.806,1829.3,1828.8,5.46801]
[1743758235655,10.9342,1829.2,1828.8,5.46801]
[1743758236084,5.46707,1829.2,1828.8,10.93591]
[1743758236291,5.46707,1829.2,1828.9,1.093591]
[1743758236877,10.93414,1829.2,1828.9,1.093591]
[1743758237079,10.93414,1829.2,1828.8,5.4679]
[1743758238290,5.46719,1829.1,1828.8,5.4679]
[1743758238858,5.46707,1829.2,1828.8,5.4679]
[1743758239054,5.4674,1829.1,1828.7,11.51632]
[1743758239260,0.7591,1829.1,1828.9,5.46769]
[1743758240185,3.7583,1829.3,1829.0,5.46746]
[1743758241093,3.7583,1829.3,1829.0,10.93481]
[1743758241464,0.7583,1829.3,1829.1,5.46706]
[1743758242305,0.7583,1829.3,1829.1,5.467]
[1743758242502,0.7583,1829.3,1829.0,5.46744]
[1743758242903,0.7583,1829.3,1829.0,12.028275]
[1743758244369,0.7583,1829.3,1829.0,6.560835]
[1743758245948,0.7583,1829.3,1829.1,5.46715]
[1743758246144,0.7583,1829.3,1829.0,6.560835]
[1743758247240,0.7583,1829.3,1829.0,12.028155]
[1743758247442,8.46628,1829.4,1829.1,6.6699355]
[1743758247947,13.93272,1829.4,1829.1,1.2028155]
[1743758248103,13.93272,1829.4,1829.0,5.46732]
[1743758248538,8.46628,1829.4,1829.0,5.46732]
[1743758248745,13.93274,1829.4,1829.1,5.46714]
[1743758248941,8.46628,1829.4,1829.1,5.46714]
[1743758249108,8.46628,1829.4,1829.0,5.46732]
[1743758249309,5.46658,1829.3,1829.0,6.560822]
[1743758249647,8.46628,1829.4,1828.8,5.46797]
[1743758249648,5.46725,1829.1,1828.8,5.46797]
[1743758250863,6.29905,1829.2,1828.8,10.9359]
[1743758251827,0.8319,1829.2,1829.0,5.46719]
[1743758252081,3.8319,1829.2,1828.8,6.26013]
[1743758252226,0.8319,1829.2,1828.8,0.7922]
[1743758252545,3.8319,1829.2,1828.9,10.93515]
[1743758252749,3.0,1829.2,1829.0,6.560965]
[1743758252958,0.7728,1829.5,1829.1,6.29617]
[1743758253141,3.7728,1829.5,1829.3,5.46648]
[1743758253364,3.7728,1829.5,1829.2,5.46666]
[1743758253866,3.0,1829.5,1829.2,5.46666]
[1743758254039,3.0,1829.5,1829.3,0.546666]
[1743758254945,5.46599,1829.5,1829.1,11.76325]
[1743758256376,5.46599,1829.5,1829.0,5.231]
[1743758256377,8.46666,1829.3,1829.0,5.231]
[1743758257277,8.46666,1829.3,1829.0,10.69844]
[1743758258955,3.0,1829.6,1829.3,5.46643]
[1743758259169,6.23562,1829.7,1829.3,5.46643]
[1743758259570,6.23562,1829.7,1829.4,5.46619]
[1743758259875,3.0,1829.6,1829.4,5.46619]
[1743758260549,3.0,1829.6,1829.3,5.46643]
[1743758260774,3.0,1829.6,1829.3,6.61441529]
[1743758261003,3.0,1829.6,1829.3,6.559757]
[1743758261405,3.0,1829.6,1829.3,12.026177]
[1743758262486,3.0,1829.6,1829.4,5.46623]
[1743758263986,3.0,1829.6,1829.3,6.559747]
[1743758264502,3.0,1829.6,1829.3,12.026207]
[1743758264802,3.0,1829.6,1829.3,6.559747]
[1743758265404,3.0,1829.6,1829.3,12.026177]
[1743758265603,3.0,1829.6,1829.4,5.46624]
[1743758266405,3.0,1829.6,1829.4,6.6688387]
[1743758266576,6.23562,1829.7,1829.4,6.6688387]
[1743758267304,3.7701,1829.7,1829.4,12.1350187]
[1743758267485,3.7701,1829.7,1829.4,12.1349587]
[1743758267806,3.7701,1829.7,1829.4,6.6687787]
[1743758268005,3.7701,1829.7,1829.6,5.46567]
[1743758268209,3.7701,1829.7,1829.5,5.46596]
[1743758268427,3.7701,1829.7,1829.5,6.67943587]
[1743758268630,3.7701,1829.7,1829.5,1.21347587]
[1743758268926,3.7701,1829.7,1829.5,6.67943587]
[1743758269914,3.7701,1829.7,1829.5,1.21347587]
[1743758270291,3.7701,1829.7,1829.5,5.46597]
[1743758271225,3.7701,1829.7,1829.4,10.93231]
[1743758271538,3.0,1829.6,1829.3,5.46651]
[1743758272392,3.0,1829.6,1829.3,5.46644]
[1743758272731,3.0,1829.6,1829.3,10.93291]
[1743758272892,3.0,1829.6,1829.3,12.107091]
[1743758273311,3.0,1829.6,1829.3,6.640621]
[1743758273510,3.0,1829.6,1829.3,12.107041]
[1743758273711,3.0,1829.6,1829.3,12.107031]
[1743758273912,3.0,1829.6,1829.3,6.640601]
[1743758275142,3.0,1829.6,1829.3,12.107051]
[1743758275739,3.0,1829.6,1829.3,6.640601]
[1743758276248,3.0,1829.6,1829.3,12.107081]
[1743758276407,3.0,1829.6,1829.3,6.640601]
[1743758276608,3.0,1829.6,1829.4,5.46623]
[1743758276808,3.0,1829.6,1829.3,12.107051]
[1743758277008,3.0,1829.6,1829.3,6.640601]
[1743758278254,3.0,1829.6,1829.3,12.107041]
[1743758278438,3.0,1829.6,1829.3,12.107061]
[1743758279256,3.0,1829.6,1829.3,6.640601]
[1743758279415,8.46567,1829.6,1829.3,6.640601]
[1743758280850,3.0,1829.8,1829.4,0.6640601]
[1743758281070,3.0,1829.8,1829.5,10.9316]
[1743758281368,3.0,1829.8,1829.5,5.46578]
[1743758281670,8.46511,1829.8,1829.5,5.46578]
[1743758281871,8.46511,1829.8,1829.5,10.93162]
[1743758282170,8.46511,1829.8,1829.5,5.46578]
[1743758283482,13.93033,1829.8,1829.5,5.46578]
[1743758283803,5.4654,1829.7,1829.4,10.93239]
[1743758283976,5.4654,1829.7,1829.5,1.093239]
[1743758285066,5.4654,1829.7,1829.4,5.46617]
[1743758285761,5.4654,1829.7,1829.4,10.9323]
[1743758285967,10.93094,1829.7,1829.4,5.46613]
[1743758286170,0.7645,1829.6,1829.4,5.46613]
[1743758286395,0.7645,1829.6,1829.3,10.93306]
[1743758286703,0.7645,1829.6,1829.4,5.46624]
[1743758289795,0.7645,1829.6,1829.4,10.93237]
[1743758289994,0.7645,1829.6,1829.4,5.46613]
[1743758292115,0.7645,1829.6,1829.3,12.107276]
[1743758293417,6.23022,1829.6,1829.3,5.46654]
[1743758293617,11.69604,1829.6,1829.3,5.46654]
[1743758293806,6.23022,1829.6,1829.3,5.46654]
[1743758294829,3.7645,1829.6,1829.3,5.46642]
[1743758295187,9.23021,1829.6,1829.3,5.46642]
[1743758301349,9.23021,1829.6,1829.3,10.93285]
[1743758301549,3.7645,1829.6,1829.3,10.93285]
[1743758301750,3.7645,1829.6,1829.4,5.46624]
[1743758301907,5.46514,1829.8,1829.4,5.46624]
[1743758301908,0.7515,1829.8,1829.5,0.05465871]
[1743758302107,0.1,1829.9,1829.6,5.46556]
[1743758302339,5.56491,1829.9,1829.6,5.46556]
[1743758302549,11.02985,1829.9,1829.5,5.4659]
[1743758302845,11.02985,1829.9,1829.5,6.64053]
[1743758303151,3.0,1829.8,1829.5,6.64046]
[1743758303747,3.0,1829.8,1829.5,12.10628]
[1743758303913,3.0,1829.8,1829.5,6.64045]
[1743758304545,8.46513,1829.8,1829.5,6.64045]
[1743758304845,8.46513,1829.8,1829.3,5.46652]
[1743758304846,5.46559,1829.7,1829.3,5.46652]
[1743758305151,5.46574,1829.6,1829.3,5.46652]
[1743758305655,10.93119,1829.7,1829.3,10.93294]
[1743758306240,5.46559,1829.7,1829.3,10.93294]
[1743758307552,10.93115,1829.7,1829.3,5.46642]
[1743758307754,10.93115,1829.7,1829.3,7.25551262]
[1743758308240,10.93115,1829.7,1829.3,12.72196262]
[1743758308549,5.46556,1829.7,1829.3,12.72196262]
[1743758309048,5.46584,1829.6,1829.3,1.78909262]
[1743758309253,6.26104,1829.6,1829.2,6.27452]
[1743758309549,8.46661,1829.3,1829.0,5.46737]
[1743758312553,13.93338,1829.3,1828.9,12.41241617]
[1743758312755,8.46661,1829.3,1828.9,17.88004617]
[1743758312913,8.46661,1829.3,1828.9,17.87996617]
[1743758313314,8.46661,1829.3,1829.0,5.46745]
[1743758315980,8.46661,1829.3,1828.9,6.26243]
[1743758316261,5.46733,1829.1,1828.7,6.27564]
[1743758316560,5.46733,1829.1,1828.7,11.7439]
[1743758316735,10.93466,1829.1,1828.7,6.27564]
[1743758316936,5.46747,1829.0,1828.7,11.74392]
[1743758317135,5.46732,1829.1,1828.7,12.918312]
[1743758317338,10.9347,1829.1,1828.7,12.918312]
[1743758318177,5.46732,1829.1,1828.7,12.918312]
[1743758318474,10.93468,1829.1,1828.7,12.918262]
[1743758318679,5.46732,1829.1,1828.7,12.918282]
[1743758318883,5.46732,1829.1,1828.8,5.46806]
[1743758319275,10.93465,1829.1,1828.7,12.918282]
[1743758319569,5.46732,1829.1,1828.8,1.2918282]
[1743758320271,10.93473,1829.1,1828.8,1.2918282]
[1743758321115,5.46732,1829.1,1828.8,1.2918282]
[1743758321317,5.46731,1829.1,1828.8,1.2918282]
[1743758321502,5.4675,1829.0,1828.7,6.27563]
[1743758321804,5.4675,1829.0,1828.7,11.74387]
[1743758322414,5.46731,1829.1,1828.7,11.74387]
[1743758322917,5.46731,1829.1,1828.8,5.46804]
[1743758324421,10.93471,1829.1,1828.7,11.74387]
[1743758324718,5.46731,1829.1,1828.7,12.918257]
[1743758325335,10.93462,1829.1,1828.7,12.918257]
[1743758325539,5.46748,1829.0,1828.7,12.918287]
[1743758325838,10.93472,1829.1,1828.7,12.918287]
[1743758326134,10.93464,1829.1,1828.7,12.918287]
[1743758326542,5.46731,1829.1,1828.8,5.46805]
[1743758326744,10.93472,1829.1,1828.8,5.46805]
[1743758327047,5.46731,1829.1,1828.8,5.46805]
[1743758327330,0.824,1829.5,1829.0,0.8206]
[1743758327545,0.824,1829.5,1829.2,5.46682]
[1743758327697,3.0,1829.4,1829.2,5.46682]
[1743758328596,3.0,1829.4,1829.1,5.52182529]
[1743758329408,8.46627,1829.4,1829.1,5.46716]
[1743758333907,8.46627,1829.4,1829.1,10.93424]
[1743758334108,8.46627,1829.4,1829.1,10.98890575]
[1743758334308,8.46627,1829.4,1829.1,5.52174575]
[1743758335143,8.46627,1829.4,1829.1,10.98878575]
[1743758335344,8.46627,1829.4,1829.1,5.52170575]
[1743758335634,8.46627,1829.4,1829.1,5.46704]
[1743758335812,13.93278,1829.4,1829.0,11.75534]
[1743758336447,8.46627,1829.4,1829.1,5.46708]
[1743758336631,8.46627,1829.4,1829.1,5.52174574]
[1743758336829,3.0,1829.5,1829.2,5.46668]
[1743758337147,3.0,1829.5,1829.3,5.46655]
[1743758337347,3.0,1829.5,1829.2,5.46668]
[1743758337744,0.7874,1829.6,1829.2,0.78398211]
[1743758337916,5.46542,1829.7,1829.4,5.4661]
[1743758338116,3.0,1829.6,1829.4,5.4661]
[1743758338513,0.7931,1829.8,1829.3,0.7991]
[1743758338742,3.0,1829.7,1829.4,10.93229]
[1743758338917,8.4654,1829.7,1829.4,5.46613]
[1743758339336,8.4654,1829.7,1829.4,10.93227]
[1743758339643,3.0,1829.7,1829.4,10.93231]
[1743758340214,0.51680557,1829.9,1829.6,5.46567]
[1743758340423,8.56488,1829.9,1829.5,6.24862]
[1743758340624,3.0,1829.7,1829.5,6.24857]
[1743758340837,3.0,1829.7,1829.5,5.46587]
[1743758341023,0.7571,1829.8,1829.5,10.93173]
[1743758341220,15.319951,1829.8,1829.4,10.93239]
[1743758341419,15.319951,1829.8,1829.4,10.93232]
[1743758341619,15.319951,1829.8,1829.4,5.46616]
[1743758342166,5.46542,1829.7,1829.3,6.24921]
[1743758342455,5.46567,1829.6,1829.3,5.46642]
[1743758342659,5.46602,1829.5,1829.2,5.46681]
[1743758342830,6.27322,1829.5,1829.2,5.46681]
[1743758343577,11.73935,1829.5,1829.2,5.46681]
[1743758344661,5.46677,1829.3,1828.9,6.29617]
[1743758344961,5.46763,1829.0,1828.6,5.46855]
[1743758345124,6.29273,1829.0,1828.7,5.46835]
[1743758345428,0.8251,1829.0,1828.6,5.46861]
[1743758345620,3.8251,1829.0,1828.7,5.46822]
[1743758346648,9.29257,1829.0,1828.7,5.46822]
[1743758347361,3.8251,1829.0,1828.7,6.561905]
[1743758347565,9.29271,1829.0,1828.7,6.561905]
[1743758348066,9.29271,1829.0,1828.7,1.093685]
[1743758348266,9.29271,1829.0,1828.6,10.93709]
[1743758348465,14.76034,1829.0,1828.6,10.93709]
[1743758348662,3.8251,1829.0,1828.7,5.46833]
[1743758348868,0.7978,1829.2,1828.8,5.46806]
[1743758349070,9.26473,1829.2,1828.9,5.46767]
[1743758349564,9.26473,1829.2,1828.8,10.93602]
[1743758349732,9.26473,1829.2,1828.8,12.109622]
[1743758349932,9.26473,1829.2,1828.9,5.46776]
[1743758351268,5.46718,1829.1,1828.8,5.46796]
[1743758351964,10.93451,1829.1,1828.7,6.26822]
[1743758352264,5.46718,1829.1,1828.8,5.46802]
[1743758352470,5.46718,1829.1,1828.8,6.561644]
[1743758353067,5.46718,1829.1,1828.8,12.029554]
[1743758353269,5.46718,1829.1,1828.8,6.561534]
[1743758353640,5.46718,1829.1,1828.8,1.093624]
[1743758353845,6.24578,1829.0,1828.7,5.46833]
[1743758354047,11.71344,1829.0,1828.6,5.46862]
[1743758354242,11.71344,1829.0,1828.6,10.93715]
[1743758354447,3.7783,1829.0,1828.5,0.7929]
[1743758354769,3.0,1828.7,1828.5,6.26185]
[1743758354970,0.7783,1829.0,1828.7,5.46825]
[1743758355276,3.0,1829.0,1828.7,5.46825]
[1743758356164,8.46759,1829.0,1828.7,5.46825]
[1743758357149,13.93528,1829.0,1828.6,5.4686]
[1743758357350,13.93528,1829.0,1828.6,10.93713]
[1743758357550,8.46759,1829.0,1828.7,5.46834]
[1743758358447,8.46759,1829.0,1828.7,10.93643]
[1743758358772,8.46759,1829.0,1828.7,5.46821]
[1743758359280,8.46759,1829.0,1828.6,12.110203]
[1743758359435,13.93526,1829.0,1828.6,6.641603]
[1743758359640,6.23231,1828.9,1828.6,6.641603]
[1743758360374,0.7645,1828.9,1828.6,12.16480392]
[1743758360670,0.7645,1828.9,1828.6,12.110123]
[1743758361170,8.46759,1829.0,1828.7,6.6793523]
[1743758361374,8.46759,1829.0,1828.7,10.93658]
[1743758361544,8.46759,1829.0,1828.7,5.46824]
[1743758362074,0.7526,1828.8,1828.6,5.4686]
[1743758362775,0.7526,1828.8,1828.6,10.99183056]
[1743758363376,0.7916,1828.9,1828.6,10.99183056]
[1743758363582,6.25939,1828.9,1828.6,5.46855]
[1743758364876,5.46824,1828.8,1828.5,5.4689]
[1743758365078,10.93656,1828.8,1828.4,10.93833]
[1743758365276,5.46824,1828.8,1828.4,10.93833]
[1743758365482,5.46824,1828.8,1828.4,5.46913]
[1743758365483,10.93647,1828.8,1828.4,5.46913]
[1743758365774,5.46823,1828.8,1828.4,10.93825]
[1743758366092,5.46823,1828.8,1828.4,12.107165]
[1743758366283,10.93649,1828.8,1828.4,12.107165]
[1743758366446,10.93649,1828.8,1828.4,12.107205]
[1743758366647,5.46836,1828.7,1828.4,6.638035]
[1743758367091,5.46836,1828.7,1828.4,12.107155]
[1743758367286,5.46823,1828.8,1828.4,12.107155]
[1743758367492,5.46823,1828.8,1828.5,5.46896]
[1743758367988,10.93646,1828.8,1828.5,5.46896]
[1743758368198,5.46823,1828.8,1828.5,5.46896]
[1743758368348,5.46823,1828.8,1828.5,6.6796595]
[1743758369267,5.46823,1828.8,1828.5,12.1484795]
[1743758369481,5.46823,1828.8,1828.5,12.9541795]
[1743758369845,5.46823,1828.8,1828.5,7.4852195]
[1743758370053,5.46823,1828.8,1828.5,12.9540895]
[1743758370349,8.46785,1828.9,1828.6,6.74016661]
[1743758370548,3.0,1828.9,1828.6,6.74016661]
[1743758370791,3.0,1828.9,1828.6,5.46855]
[1743758371394,8.4678,1828.9,1828.6,5.46854]
[1743758371551,9.2223,1828.9,1828.6,5.46854]
[1743758372089,3.7545,1828.9,1828.6,10.93708]
[1743758372251,3.7545,1828.9,1828.7,6.562058]
[1743758372451,3.7545,1828.9,1828.7,5.46835]
[1743758372653,9.22234,1828.9,1828.6,5.46854]
[1743758373800,9.22234,1828.9,1828.6,10.93706]
[1743758374253,9.22234,1828.9,1828.6,5.46852]
[1743758375589,5.46807,1828.8,1828.5,11.74348]
[1743758375959,5.46807,1828.8,1828.5,5.46889]
[1743758376177,6.937111,1828.8,1828.4,5.46919]
[1743758376481,6.22927,1828.7,1828.4,5.46919]
[1743758376667,6.22927,1828.7,1828.4,10.93832]
[1743758377292,6.22927,1828.7,1828.4,5.46913]
[1743758378920,0.7609,1828.7,1828.4,10.99294704]
[1743758379112,0.7609,1828.7,1828.5,5.46893]
[1743758379827,5.46807,1828.8,1828.4,7.1699447]
[1743758379982,5.46807,1828.8,1828.4,10.93826]
[1743758380482,5.46838,1828.7,1828.4,10.93826]
[1743758380814,10.93636,1828.8,1828.4,10.93826]
[1743758381018,10.93636,1828.8,1828.5,5.46891]
[1743758381019,5.46807,1828.8,1828.5,5.46891]
[1743758381318,3.8125,1828.9,1828.6,10.93701]
[1743758381514,5.46817,1828.8,1828.5,6.27111]
[1743758381877,10.93643,1828.8,1828.5,6.27111]
[1743758382214,10.93643,1828.8,1828.4,5.46924]
[1743758382579,10.93643,1828.8,1828.4,10.93848]
[1743758382815,5.46817,1828.8,1828.4,12.634798]
[1743758383139,5.46817,1828.8,1828.4,5.46924]
[1743758383280,6.24181,1828.7,1828.4,5.46924]
[1743758384713,11.71034,1828.7,1828.4,5.46924]
[1743758384914,6.24181,1828.7,1828.4,5.46924]
[1743758386623,6.24181,1828.7,1828.4,10.93837]
[1743758387229,6.24181,1828.7,1828.4,5.46913]
[1743758387516,6.24181,1828.7,1828.1,5.47005]
[1743758387517,5.46918,1828.5,1828.1,5.47005]
[1743758387686,5.46918,1828.5,1828.2,5.46976]
[1743758388087,5.46946,1828.4,1828.0,6.23211]
[1743758388287,11.74088,1828.4,1828.0,11.70246]
[1743758388488,6.27136,1828.4,1828.1,5.47007]
[1743758388984,6.28778,1828.5,1828.2,5.46973]
[1743758389191,5.47034,1828.1,1827.7,5.47121]
[1743758389408,5.47046,1828.0,1827.7,5.47121]
[1743758389723,6.28926,1828.0,1827.6,11.75082]
[1743758389919,6.28926,1828.0,1827.6,12.925902]
[1743758390328,11.75996,1828.0,1827.6,7.454292]
[1743758390528,6.28926,1828.0,1827.6,7.454172]
[1743758391223,6.28926,1828.0,1827.6,12.925732]
[1743758391427,6.28926,1828.0,1827.7,5.47132]
[1743758391924,11.7599,1828.0,1827.7,5.47132]
[1743758392230,6.28926,1828.0,1827.7,5.47133]
[1743758393426,11.75989,1828.0,1827.7,5.47133]
[1743758393745,6.28926,1828.0,1827.7,5.47133]
[1743758395029,11.75989,1828.0,1827.7,5.47133]
[1743758395241,6.28926,1828.0,1827.7,5.47133]
[1743758396036,6.28926,1828.0,1827.6,12.925702]
[1743758396333,6.28926,1828.0,1827.6,7.454172]
[1743758396535,11.75993,1828.0,1827.6,5.47149]
[1743758396830,6.28926,1828.0,1827.6,5.47149]
[1743758397034,6.28926,1828.0,1827.6,10.94299]
[1743758397343,6.28926,1828.0,1827.7,5.47134]
[1743758397634,6.28926,1828.0,1827.6,10.94304]
[1743758397935,6.28926,1828.0,1827.6,12.113474]
[1743758398233,6.28926,1828.0,1827.7,5.47132]
[1743758398614,6.28926,1828.0,1827.6,12.113474]
[1743758398817,6.28926,1828.0,1827.6,6.641924]
[1743758399037,11.75997,1828.0,1827.6,6.641924]
[1743758399836,5.47079,1827.9,1827.6,6.641924]
[1743758400037,10.94179,1827.9,1827.6,1.170434]
[1743758400338,5.47079,1827.9,1827.6,5.52634882]
[1743758400739,5.47079,1827.9,1827.6,5.47164]
[1743758400911,11.75993,1828.0,1827.6,5.52627043]
[1743758401112,5.47081,1827.9,1827.6,5.47156]
[1743758401320,10.94177,1827.9,1827.5,11.70508]
[1743758401513,9.29315,1827.8,1827.2,5.47274]
[1743758401745,5.47237,1827.4,1827.1,5.57301]
[1743758402034,5.47237,1827.4,1827.1,5.57309]
[1743758402235,3.0,1827.3,1827.1,0.1]
[1743758402433,8.47265,1827.3,1827.1,0.1]
[1743758402740,0.76,1827.6,1827.2,5.47285]
[1743758402903,3.0,1827.5,1827.2,10.94557]
[1743758403108,3.0,1827.5,1827.2,5.47272]
[1743758403309,8.47205,1827.5,1827.1,12.36094]
[1743758403665,13.94417,1827.5,1827.1,12.36094]
[1743758403848,5.4724,1827.4,1827.1,5.573]
[1743758404007,6.2991,1827.4,1827.1,0.1]
[1743758404349,5.47285,1827.2,1827.1,0.1]
[1743758404521,9.27625,1827.2,1827.1,0.1]
[1743758404720,10.751142,1827.2,1827.1,0.1]
[1743758406758,5.278292,1827.2,1827.1,0.1]
[1743758406913,3.8034,1827.2,1827.1,0.1]
[1743758407115,6.30064,1827.4,1827.1,5.57305]
[1743758407314,5.47255,1827.3,1827.1,0.1]
[1743758409970,6.30064,1827.4,1827.1,0.1]
[1743758410172,11.77306,1827.4,1827.1,0.1]
[1743758411865,5.47263,1827.3,1827.1,0.1]
[1743758412977,11.77297,1827.4,1827.1,0.1]
[1743758413134,11.773,1827.4,1827.1,0.1]
[1743758413535,6.3006,1827.4,1827.1,5.57314]
[1743758413731,0.7613,1827.6,1827.3,5.47255]
[1743758414042,0.40311556,1828.1,1827.8,5.47095]
[1743758414043,11.09837556,1828.1,1827.8,5.47095]
[1743758414362,6.64207556,1828.1,1827.7,6.30245]
[1743758414582,1.17181556,1828.1,1827.9,5.47055]
[1743758414761,6.64197556,1828.1,1827.7,11.77365]
[1743758414987,5.47046,1828.0,1827.7,6.3023]
[1743758415363,5.4708,1827.9,1827.6,6.28559]
[1743758415790,8.47046,1828.0,1827.6,11.75708]
[1743758415982,8.47046,1828.0,1827.6,6.28549]
[1743758416394,8.47046,1828.0,1827.6,11.75702]
[1743758417269,3.0,1828.0,1827.7,5.47131]
[1743758417593,3.0,1828.0,1827.7,5.47124]
[1743758418094,14.93515203,1828.4,1828.0,5.47036]
[1743758418095,5.87978264,1828.4,1828.0,5.47036]
[1743758418403,6.29046,1828.5,1828.2,0.8108]
[1743758418404,5.46899,1828.5,1828.2,0.8108]
[1743758418980,6.944907,1828.5,1828.2,0.8108]
[1743758419294,12.414147,1828.5,1828.1,5.47005]
[1743758420661,5.4693,1828.4,1828.0,6.2666]
[1743758420879,5.4693,1828.4,1828.0,11.73688]
[1743758421713,5.4693,1828.4,1828.1,5.47015]
[1743758422415,5.4693,1828.4,1828.0,6.26648]
[1743758422577,5.4693,1828.4,1828.0,11.73684]
[1743758422784,5.46966,1828.3,1828.0,5.47028]
[1743758422997,11.6949,1828.3,1827.9,5.47064]
[1743758423583,6.22516,1828.3,1827.9,10.94122]
[1743758423811,6.22516,1828.3,1828.0,5.47043]
[1743758424871,1.2414187,1828.4,1828.1,5.47014]
[1743758425070,9.25928,1828.5,1828.2,5.46986]
[1743758425594,9.25928,1828.5,1828.1,6.769914]
[1743758425905,14.72846,1828.5,1828.1,6.769914]
[1743758426083,14.72846,1828.5,1828.1,6.2229]
[1743758426282,9.25928,1828.5,1828.1,6.27759496]
[1743758427024,5.46928,1828.4,1828.1,6.2229]
[1743758427371,9.25928,1828.5,1828.1,6.2229]
[1743758427570,14.72843,1828.5,1828.1,6.2229]
[1743758427769,5.46932,1828.4,1828.1,6.2229]
[1743758427980,16.24178069,1828.5,1828.1,6.2229]
[1743758428187,16.24178069,1828.5,1828.1,6.27759499]
[1743758428387,10.77254069,1828.5,1828.1,6.27759499]
[1743758428622,9.25928,1828.5,1828.2,5.46978]
[1743758428771,9.25928,1828.5,1828.1,6.2229]
[1743758428977,14.72844,1828.5,1828.1,6.2229]
[1743758429281,14.72844,1828.5,1828.1,6.27759501]
[1743758429512,14.72844,1828.5,1828.1,6.2229]
[1743758429713,5.46931,1828.4,1828.1,6.2229]
[1743758431733,5.46991,1828.2,1827.9,10.94125]
[1743758432025,5.46985,1828.3,1827.9,10.99595045]
[1743758432179,3.0,1828.3,1828.1,0.7935]
[1743758432775,3.0,1828.3,1828.1,6.26356]
[1743758433012,3.0,1828.3,1828.1,5.47006]
[1743758433583,9.22467,1828.3,1827.9,0.793]
[1743758433781,16.088364,1828.3,1827.9,11.73423]
[1743758434015,10.618544,1828.3,1827.9,11.73423]
[1743758434211,9.22467,1828.3,1827.9,11.73423]
[1743758434377,14.69439,1828.3,1827.9,6.2636]
[1743758435091,9.22467,1828.3,1827.9,6.31830051]
[1743758435311,8.46967,1828.3,1828.0,5.47035]
[1743758435876,8.46967,1828.3,1827.9,6.2636]
[1743758436122,5.46998,1828.2,1827.9,6.2636]
[1743758436281,8.46962,1828.3,1827.9,6.31830052]
[1743758436619,5.47031,1828.1,1827.8,5.47097]
[1743758436822,6.22099,1828.2,1827.5,0.802]
[1743758436823,5.46988,1828.2,1827.5,0.802]
[1743758437037,5.47144,1827.7,1827.4,5.47218]
[1743758437178,10.94302,1827.7,1827.3,6.2744]
[1743758437528,5.47144,1827.7,1827.3,13.58627442]
[1743758437939,10.94298,1827.7,1827.3,13.58630442]
[1743758438147,5.47144,1827.7,1827.3,13.58629442]
[1743758438287,10.94302,1827.7,1827.3,8.11387442]
[1743758438923,5.47144,1827.7,1827.3,8.11387442]
[1743758439127,6.22219,1827.8,1827.4,5.52691613]
[1743758439324,6.22219,1827.8,1827.5,5.47193]
[1743758439625,5.47138,1827.7,1827.4,5.47216]
[1743758440092,5.47138,1827.7,1827.4,5.52687614]
[1743758440292,6.22219,1827.8,1827.4,10.99898614]
[1743758440521,11.69347,1827.8,1827.4,5.52682614]
[1743758440722,11.69347,1827.8,1827.4,5.47211]
[1743758440929,6.22219,1827.8,1827.4,10.99894614]
[1743758441111,6.22219,1827.8,1827.5,5.47186]
[1743758441639,11.69343,1827.8,1827.4,5.52694614]
[1743758442020,6.22219,1827.8,1827.4,10.99906614]
[1743758442195,6.22219,1827.8,1827.4,10.99898614]
[1743758442393,6.22219,1827.8,1827.4,5.52683614]
[1743758442394,11.69346,1827.8,1827.4,5.52683614]
[1743758442594,7.43290611,1827.8,1827.4,5.47212]
[1743758442794,5.47144,1827.7,1827.4,5.47212]
[1743758442994,7.43290611,1827.8,1827.5,5.47195]
[1743758443515,6.68180611,1827.8,1827.5,5.47195]
[1743758443727,5.47109,1827.8,1827.5,5.47195]
[1743758444729,9.29011,1828.0,1827.7,5.47133]
[1743758445228,7.086242,1828.3,1827.9,0.7911]
[1743758445394,5.46999,1828.2,1827.9,0.7911]
[1743758445594,3.0,1828.1,1827.9,0.7911]
[1743758445793,13.94058,1828.1,1827.9,0.7911]
[1743758446022,8.4702,1828.1,1827.8,0.783]
[1743758446266,3.0,1828.1,1827.8,11.72491]
[1743758446529,3.0,1828.1,1827.9,5.47075]
[1743758446727,3.0,1828.1,1827.8,6.25392]
[1743758447036,3.0,1828.1,1827.7,5.4713]
[1743758447037,3.0,1828.0,1827.7,5.4713]
[1743758447197,8.47054,1828.0,1827.7,5.4713]
[1743758449833,3.0,1828.0,1827.7,10.94256]
[1743758450132,3.0,1828.0,1827.7,12.641036]